bitfinex/quotes_SOLUSD_20251006
["timestamp","ask_amount","ask_price","bid_price","bid_amount"]
[1759757844602,0.2,233.95,233.94,52.34]
[1759757844805,0.2,233.95,233.94,21.51]
[1759757845006,0.2,233.95,233.94,53.05]
[1759757845207,0.2,234.04,233.94,53.05]
[1759757845412,0.2,234.04,233.95,11.58647521]
[1759757845600,0.2,234.04,233.98,20.8]
[1759757845806,0.2,234.04,233.99,4.2736869]
[1759757846021,0.2,234.04,234.0,31.54]
[1759757846224,0.2,234.04,234.01,31.52]
[1759757846427,0.2,234.04,234.01,32.23]
[1759757846729,0.2,234.04,234.02,0.71]
[1759757846948,0.2,234.14,234.04,20.8]
[1759757847144,0.2,234.14,234.05,0.71]
[1759757847308,0.2,234.14,234.09,20.8]
[1759757847500,0.2,234.14,234.1,32.25]
[1759757847943,0.2,234.14,234.11,0.71]
[1759757848157,0.2,234.14,234.12,0.71]
[1759757848742,0.2,234.14,234.1,31.54]
[1759757848959,0.2,234.14,234.11,0.71]
[1759757849146,0.2,234.14,234.13,20.8]
[1759757849558,0.2,234.14,234.13,21.51]
[1759757849746,0.2,234.15,234.13,32.38647521]
[1759757849948,0.2,234.15,234.14,11.58647521]
[1759757850263,0.2,234.15,234.14,43.10647521]
[1759757850440,0.1,234.37,234.17,20.8]
[1759757850636,7.05499244,234.26,234.18,31.52]
[1759757850857,7.77499244,234.26,234.19,31.52]
[1759757851042,4.46810576,234.3,234.13,0.71]
[1759757851043,0.72,234.25,234.13,0.71]
[1759757851260,0.72,234.25,233.86,21.48023068]
[1759757851261,0.72,234.25,234.1,0.71]
[1759757851469,7.05499244,234.19,234.11,38.72]
[1759757851670,7.05499244,234.19,234.11,20.8]
[1759757851870,4.27003714,234.19,234.12,31.52]
[1759757852172,20.8,234.25,234.12,31.52]
[1759757852173,21.52,234.25,234.13,0.71]
[1759757852359,7.05499244,234.22,234.13,0.71]
[1759757852761,4.26925031,234.24,234.14,31.52]
[1759757853065,10.67166924,234.27,234.15,0.71]
[1759757853066,11.32382889,234.26,234.15,0.71]
[1759757853271,7.05499244,234.24,234.15,0.71]
[1759757853779,0.72,234.24,234.15,0.71]
[1759757853959,0.72,234.24,234.16,4.27058421]
[1759757853960,7.77499244,234.24,234.16,4.27058421]
[1759757854156,12.04420938,234.24,234.15,0.71]
[1759757854362,4.98921694,234.24,234.11,20.8]
[1759757854576,7.05499244,234.2,234.12,31.5]
[1759757855284,7.05499244,234.21,234.12,31.5]
[1759757855463,7.05499244,234.21,234.13,31.5]
[1759757855779,4.26921694,234.24,234.13,32.21]
[1759757855982,11.32420938,234.24,234.15,4.2707666]
[1759757856162,7.77499244,234.23,234.14,0.71]
[1759757856477,7.05499244,234.2,234.15,31.48]
[1759757856680,7.05499244,234.21,234.15,31.48]
[1759757856882,7.05499244,234.23,234.15,31.48]
[1759757857066,7.05499244,234.25,234.16,0.67]
[1759757857272,11.32387346,234.26,234.16,0.67]
[1759757857569,7.72499244,234.26,234.16,0.67]
[1759757857774,0.2,234.3,234.18,20.8]
[1759757857775,0.87,234.3,234.18,20.8]
[1759757857975,7.05499244,234.28,234.18,21.47]
[1759757858283,0.2,234.3,234.2,10.87647521]
[1759757858484,0.2,234.3,234.21,32.17]
[1759757858784,7.25499244,234.3,234.21,32.17]
[1759757858958,7.05499244,234.22,234.04,20.0]
[1759757859301,21.47,234.21,234.07,0.67]
[1759757859459,0.67,234.21,234.08,30.64]
[1759757859658,0.2,234.3,234.11,20.8]
[1759757859894,0.2,234.3,234.19,20.8]
[1759757860083,0.1,234.56,234.16,20.0]
[1759757860084,12.91093199,234.56,234.31,20.8]
[1759757860408,7.05499244,234.51,234.36,10.87647521]
[1759757860566,0.67,234.44,234.36,32.22]
[1759757860900,0.67,234.44,234.35,32.22]
[1759757860901,7.05499244,234.42,234.35,32.22]
[1759757861100,0.67,234.41,234.32,0.67]
[1759757861275,20.8,234.45,234.29,0.67]
[1759757861276,5.03689648,234.37,234.29,0.67]
[1759757861458,22.75878314,234.37,234.3,32.22]
[1759757861893,15.7037907,234.37,234.3,32.22]
[1759757862202,15.7037907,234.37,234.25,11.54647521]
[1759757862203,15.7037907,234.37,234.25,0.67]
[1759757862388,15.7037907,234.37,234.12,46.14]
[1759757862389,15.0337907,234.37,234.3,32.22]
[1759757862780,0.1,234.37,234.3,32.22]
[1759757862978,0.1,234.37,234.33,20.8]
[1759757863295,0.1,234.37,234.31,11.54647521]
[1759757863296,0.1,234.37,234.36,20.8]
[1759757863601,0.67,234.5,234.36,63.91647521]
[1759757863767,0.1,234.53,234.4,20.8]
[1759757863972,0.77,234.53,234.4,20.8]
[1759757864279,0.1,234.53,234.42,10.87647521]
[1759757864595,0.1,234.53,234.38,20.8]
[1759757864596,4.46478442,234.48,234.38,20.8]
[1759757864770,15.12667455,234.48,234.39,29.93]
[1759757864971,4.46478442,234.48,234.39,0.67]
[1759757865203,0.2,234.48,234.39,0.67]
[1759757865366,4.46480409,234.48,234.4,32.3]
[1759757865566,15.79669422,234.48,234.41,32.3]
[1759757865795,4.46480409,234.48,234.42,0.67]
[1759757865985,0.2,234.48,234.43,53.85]
[1759757866203,0.2,234.48,234.44,0.67]
[1759757866378,0.2,234.48,234.45,0.67]
[1759757866785,0.2,234.48,234.43,53.18]
[1759757866786,0.2,234.48,234.46,33.11]
[1759757867020,0.2,234.48,234.47,11.54647521]
[1759757867324,0.1,234.53,234.47,53.89]
[1759757867482,0.1,234.53,234.48,10.87647521]
[1759757867679,0.1,234.53,234.52,20.8]
[1759757867981,0.1,234.53,234.52,64.13647521]
[1759757868185,0.1,234.53,234.52,33.14]
[1759757868396,0.1,234.68,234.56,31.67647521]
[1759757868612,0.1,234.68,234.66,10.87647521]
[1759757868798,0.1,234.68,234.67,32.76]
[1759757869123,0.1,234.68,234.67,33.42]
[1759757869316,0.1,234.68,234.57,33.28]
[1759757869317,0.1,234.68,234.63,0.66]
[1759757869497,0.1,234.68,234.67,20.8]
[1759757869801,0.69,234.82,234.67,20.8]
[1759757870004,7.74499244,234.82,234.68,0.66]
[1759757870226,20.0,234.96,234.68,21.46]
[1759757870411,7.05499244,234.83,234.68,65.07647521]
[1759757870615,0.69,234.84,234.68,65.07647521]
[1759757870919,4.25867253,234.82,234.68,65.07647521]
[1759757871100,21.49,234.84,234.68,65.07647521]
[1759757871101,4.25901531,234.8,234.68,65.07647521]
[1759757871298,4.25901531,234.8,234.66,4.26140177]
[1759757871299,19.91589473,234.74,234.66,32.72]
[1759757871606,19.91589473,234.74,234.65,20.8]
[1759757871784,4.36102285,234.69,234.66,32.96]
[1759757871986,5.05102285,234.69,234.67,32.94]
[1759757872182,4.36102285,234.69,234.64,32.94]
[1759757872383,0.1,234.69,234.64,32.94]
[1759757872589,5.0510347,234.69,234.6,20.8]
[1759757872886,4.3610347,234.69,234.61,32.94]
[1759757873222,4.3610347,234.69,234.62,32.94]
[1759757873592,4.3610347,234.69,234.6,20.8]
[1759757873795,7.05499244,234.67,234.61,32.92]
[1759757874088,15.7033846,234.69,234.55,0.66]
[1759757874291,7.05499244,234.64,234.55,0.66]
[1759757874501,15.7033846,234.69,234.55,0.66]
[1759757874502,15.7033846,234.69,234.59,20.8]
[1759757874704,5.0510347,234.69,234.59,20.8]
[1759757874909,0.1,234.69,234.59,20.8]
[1759757875120,0.79,234.69,234.6,32.92]
[1759757875419,7.05499244,234.67,234.61,32.92]
[1759757875620,7.05499244,234.66,234.59,20.8]
[1759757875800,0.79,234.69,234.58,20.8]
[1759757875999,0.1,234.69,234.59,33.58]
[1759757876328,7.05499244,234.68,234.59,33.58]
[1759757876623,7.05499244,234.68,234.55,10.87647521]
[1759757876624,7.05499244,234.65,234.55,0.66]
[1759757876787,7.05499244,234.65,234.5,20.8]
[1759757876788,0.69,234.65,234.46,33.26]
[1759757876987,15.70335018,234.69,234.5,0.66]
[1759757877189,10.87647521,234.68,234.5,0.66]
[1759757877400,0.69,234.67,234.51,10.87647521]
[1759757877584,0.69,234.66,234.53,10.87647521]
[1759757877785,7.05499244,234.64,234.56,20.8]
[1759757878015,7.05499244,234.63,234.56,20.8]
[1759757878310,7.05499244,234.6,234.57,32.94]
[1759757878512,4.95221123,234.62,234.52,20.8]
[1759757878513,7.05499244,234.58,234.52,20.8]
[1759757878731,7.05499244,234.55,234.46,33.92]
[1759757879189,7.05499244,234.53,234.47,20.8]
[1759757879392,7.05499244,234.49,234.38,0.66]
[1759757879626,7.05499244,234.47,234.38,0.66]
[1759757879824,7.05499244,234.47,234.34,4.26730391]
[1759757879825,7.05499244,234.45,234.34,4.26730391]
[1759757879993,0.69,234.46,234.33,0.66]
[1759757880196,7.05499244,234.4,234.32,33.24]
[1759757880445,7.05499244,234.37,234.32,33.24]
[1759757880599,14.92982979,234.43,234.32,33.24]
[1759757880600,7.05499244,234.34,234.32,33.24]
[1759757880801,14.92982979,234.43,234.16,20.0]
[1759757880802,7.74499244,234.33,234.16,0.66]
[1759757881140,20.8,234.39,234.16,0.66]
[1759757881141,10.87647521,234.38,234.17,17.84]
[1759757881437,10.87647521,234.38,234.14,14.9482204]
[1759757881438,0.69,234.37,234.18,33.64]
[1759757881635,7.05499244,234.32,234.19,33.0]
[1759757881924,0.69,234.31,234.18,0.66]
[1759757882121,0.69,234.38,234.2,4.26985482]
[1759757882288,7.05499244,234.37,234.23,20.8]
[1759757882490,7.05499244,234.41,234.29,10.87647521]
[1759757882691,10.87647521,234.52,234.33,20.8]
[1759757882923,7.05499244,234.47,234.37,20.8]
[1759757883107,7.05499244,234.45,234.37,20.8]
[1759757883314,7.05499244,234.42,234.36,33.04]
[1759757883509,0.69,234.5,234.36,33.7]
[1759757883721,10.87647521,234.48,234.37,20.8]
[1759757883934,10.87647521,234.53,234.37,20.8]
[1759757883935,0.69,234.47,234.37,20.8]
[1759757884095,0.69,234.47,234.24,20.0]
[1759757884096,7.05499244,234.4,234.3,4.26798842]
[1759757884421,7.05499244,234.44,234.35,20.8]
[1759757884605,0.69,234.48,234.36,10.87647521]
[1759757884807,7.05499244,234.47,234.37,0.66]
[1759757885113,4.26465425,234.49,234.37,0.66]
[1759757885114,7.05499244,234.49,234.4,20.8]
[1759757885302,0.69,234.52,234.41,33.74]
[1759757885506,7.05499244,234.54,234.44,20.8]
[1759757885814,7.05499244,234.54,234.44,21.46]
[1759757886124,7.05499244,234.58,234.49,4.26457418]
[1759757886304,0.69,234.63,234.51,10.87647521]
[1759757886621,7.05499244,234.57,234.52,33.1]
[1759757886831,7.05499244,234.58,234.53,33.1]
[1759757887124,31.67647521,234.66,234.53,33.1]
[1759757887125,0.69,234.66,234.54,0.66]
[1759757887516,0.69,234.66,234.56,20.8]
[1759757887825,0.69,234.65,234.57,33.1]
[1759757888319,0.69,234.65,234.51,0.66]
[1759757888320,4.26181203,234.65,234.51,0.66]
[1759757888521,0.69,234.64,234.52,33.08]
[1759757888829,7.05499244,234.6,234.52,53.88]
[1759757889131,7.05499244,234.57,234.52,20.8]
[1759757889308,10.87647521,234.64,234.52,53.88]
[1759757889507,10.87647521,234.62,234.52,53.88]
[1759757889809,10.87647521,234.6,234.51,33.08]
[1759757890007,1.75554195,234.61,234.42,15.14225604]
[1759757890008,1.75565881,234.59,234.49,33.06]
[1759757890231,4.2623929,234.61,234.49,37.98452731]
[1759757890439,7.05499244,234.56,234.49,20.8]
[1759757890608,7.05499244,234.55,234.49,20.8]
[1759757890919,4.2623929,234.61,234.5,33.08]
[1759757890920,7.05499244,234.54,234.5,33.08]
[1759757891126,0.69,234.57,234.5,33.08]
[1759757891496,14.91837516,234.61,234.5,33.08]
[1759757891726,4.2623929,234.61,234.53,20.8]
[1759757891913,0.2,234.72,234.53,20.8]
[1759757892117,7.05499244,234.62,234.53,20.8]
[1759757892297,7.05499244,234.62,234.5,33.74]
[1759757892298,7.05499244,234.59,234.52,33.06]
[1759757892493,0.69,234.61,234.52,33.06]
[1759757892699,4.26184793,234.64,234.52,33.06]
[1759757892906,7.05499244,234.61,234.53,33.04]
[1759757893227,7.05499244,234.59,234.54,33.04]
[1759757893529,4.26184793,234.64,234.54,33.04]
[1759757893824,4.26135751,234.67,234.56,10.87647521]
[1759757894000,7.15499244,234.69,234.6,20.8]
[1759757894001,4.3609768,234.69,234.6,20.8]
[1759757894203,4.3609768,234.69,234.56,10.87647521]
[1759757894204,7.05499244,234.63,234.56,53.86]
[1759757894525,7.05499244,234.64,234.56,53.86]
[1759757894700,7.05499244,234.63,234.56,53.86]
[1759757895021,0.1,234.69,234.57,0.66]
[1759757895223,0.1,234.69,234.6,31.67647521]
[1759757895406,0.1,234.69,234.65,20.8]
[1759757895910,0.1,234.69,234.66,33.84]
[1759757896109,0.1,234.69,234.68,20.8]
[1759757896538,0.1,234.69,234.68,21.46]
[1759757896725,0.1,234.69,234.65,21.46]
[1759757896927,0.1,234.69,234.52,3.54612111]
[1759757897239,7.05499244,234.67,234.57,0.66]
[1759757897532,7.05499244,234.66,234.58,53.98]
[1759757897746,7.05499244,234.66,234.58,20.8]
[1759757897905,22.75839759,234.69,234.62,20.8]
[1759757898108,1.75509839,234.68,234.62,33.16]
[1759757898311,11.31647714,234.66,234.62,33.16]
[1759757898511,10.7523499,234.69,234.62,33.16]
[1759757898512,4.3610629,234.69,234.62,33.16]
[1759757898749,1.75504784,234.68,234.57,20.8]
[1759757898911,1.06504784,234.67,234.58,33.16]
[1759757899234,1.06504784,234.67,234.53,33.24]
[1759757899235,1.0652572,234.66,234.59,33.16]
[1759757899428,1.0652572,234.65,234.59,33.16]
[1759757899627,7.74499244,234.68,234.59,33.16]
[1759757899628,0.69,234.68,234.59,33.16]
[1759757899816,7.05499244,234.65,234.56,21.49]
[1759757900023,0.69,234.68,234.6,20.8]
[1759757900340,1.06512982,234.67,234.61,37.42234467]
[1759757900540,1.06512982,234.66,234.61,33.16]
[1759757900756,0.1,234.69,234.62,0.69]
[1759757901042,0.1,234.69,234.64,20.8]
[1759757901210,0.1,234.69,234.68,20.8]
[1759757901408,0.1,234.69,234.68,64.81647521]
[1759757901631,0.2,234.72,234.71,20.8]
[1759757902016,0.2,234.72,234.71,21.49]
[1759757902427,0.2,234.72,234.71,53.94]
[1759757902641,0.2,234.72,234.71,20.8]
[1759757902933,0.2,234.72,234.71,53.92]
[1759757903134,0.2,234.72,234.71,54.61]
[1759757903631,0.2,234.72,234.71,53.92]
[1759757903810,0.2,234.72,234.71,20.8]
[1759757904011,0.2,234.72,234.71,53.92]
[1759757904912,0.2,234.72,234.71,54.61]
[1759757905140,0.69,234.82,234.71,54.61]
[1759757905141,0.1,234.92,234.79,20.8]
[1759757905445,1.064287,234.91,234.8,33.16]
[1759757905631,1.064287,234.9,234.8,44.03647521]
[1759757905833,1.064287,234.89,234.88,10.87647521]
[1759757906027,0.1,234.92,234.91,31.67647521]
[1759757906436,0.79,234.92,234.91,44.15647521]
[1759757906618,0.79,234.92,234.83,20.8]
[1759757906818,0.79,234.92,234.87,20.8]
[1759757907037,0.1,234.92,234.88,2.63191924]
[1759757907352,0.1,234.92,234.91,20.8]
[1759757907536,0.1,234.92,234.91,34.30839445]
[1759757907847,1.0,234.99,234.91,67.58839445]
[1759757908033,1.0,234.99,234.95,20.8]
[1759757908246,4.74008858,234.97,234.79,3.54612111]
[1759757908412,1.0,234.99,234.9,10.87647521]
[1759757908612,5.2555998,234.99,234.93,20.8]
[1759757908817,1.0,234.99,234.94,33.3]
[1759757909037,1.0,234.99,234.94,10.87647521]
[1759757909236,1.0,234.99,234.98,20.8]
[1759757909544,1.0,234.99,234.98,54.12]
[1759757909727,1.0,234.99,234.98,64.99647521]
[1759757909928,1.0,234.99,234.98,31.67647521]
[1759757910120,1.0,234.99,234.98,64.99647521]
[1759757910440,1.0,234.99,234.98,69.25215654]
[1759757910645,1.0,234.99,234.98,31.67647521]
[1759757911025,1.0,234.99,234.98,54.1]
[1759757911235,1.0,234.99,234.89,4.25721579]
[1759757911540,1.0,234.99,234.97,20.8]
[1759757911730,1.0,234.99,234.98,44.17647521]
[1759757911927,1.0,234.99,234.97,20.8]
[1759757912149,1.0,234.99,234.98,33.34]
[1759757912453,1.0,234.99,234.98,44.21647521]
[1759757913150,1.0,234.99,234.98,44.19647521]
[1759757913325,1.0,234.99,234.98,46.97535042]
[1759757913929,1.0,234.99,234.98,33.3]
[1759757914268,1.0,234.99,234.98,13.65395179]
[1759757914425,1.0,234.99,234.98,46.95395179]
[1759757914760,1.0,234.99,234.98,2.77747658]
[1759757914926,1.0,234.99,234.82,3.54612111]
[1759757914927,4.25568133,234.98,234.82,3.54612111]
[1759757915117,4.25568133,234.98,234.78,3.54612111]
[1759757915118,4.74008858,234.92,234.78,3.54612111]
[1759757915321,4.74008858,234.92,234.79,2.78028261]
[1759757915322,4.74008858,234.8,234.79,2.78028261]
[1759757915522,0.67,234.85,234.79,2.78147452]
[1759757915750,0.67,234.89,234.8,2.78147452]
[1759757916044,0.67,234.93,234.82,10.87647521]
[1759757916250,5.41008858,234.93,234.83,36.34147452]
[1759757916453,0.67,234.93,234.88,20.8]
[1759757916629,0.67,234.92,234.88,20.8]
[1759757916821,0.67,234.92,234.89,2.7767824]
[1759757917026,0.67,234.92,234.9,33.56]
[1759757917240,5.25555056,234.99,234.9,33.56]
[1759757917241,0.67,234.96,234.9,33.56]
[1759757917448,4.74008858,234.94,234.88,20.8]
[1759757917646,15.89431352,234.99,234.92,20.8]
[1759757917647,1.0,234.99,234.92,20.8]
[1759757917822,4.74008858,234.97,234.92,20.8]
[1759757918022,4.74008858,234.93,234.88,20.8]
[1759757918230,5.25556757,234.99,234.88,20.8]
[1759757918231,0.67,234.92,234.89,33.52]
[1759757918444,15.89431815,234.99,234.91,20.8]
[1759757918647,9.48017716,234.92,234.81,10.87647521]
[1759757918836,20.8,234.96,234.83,10.87647521]
[1759757919044,1.0,234.99,234.83,10.87647521]
[1759757919221,1.0,234.99,234.88,20.8]
[1759757919547,1.0,234.99,234.92,20.8]
[1759757919847,1.0,234.99,234.96,20.8]
[1759757920032,1.0,234.99,234.97,33.6]
[1759757920444,0.67,234.98,234.96,20.8]
[1759757920625,0.67,234.98,234.93,4.25652433]
[1759757920827,0.67,234.98,234.89,10.64301393]
[1759757920828,0.67,234.98,234.97,20.8]
[1759757921034,1.0,234.99,234.97,20.8]
[1759757921253,1.67,234.99,234.97,20.8]
[1759757921752,1.0,234.99,234.97,20.8]
[1759757922366,1.0,234.99,234.97,25.05579101]
[1759757922659,1.0,234.99,234.98,10.87647521]
[1759757923139,1.0,234.99,234.95,20.8]
[1759757923343,1.0,234.99,234.98,20.8]
[1759757923534,1.0,234.99,234.98,54.32]
[1759757924128,1.0,234.99,234.91,12.84]
[1759757924324,4.74008858,234.94,234.92,33.54]
[1759757924540,4.25586245,234.97,234.92,33.54]
[1759757924541,0.67,234.93,234.92,33.54]
[1759757924738,0.67,234.97,234.92,33.54]
[1759757924949,0.67,234.96,234.86,10.87647521]
[1759757925140,8.99578785,234.98,234.87,36.28877271]
[1759757925141,0.67,234.95,234.87,36.28877271]
[1759757925355,0.67,234.95,234.84,10.87647521]
[1759757925545,0.67,234.94,234.88,33.52]
[1759757925850,0.67,234.94,234.91,20.8]
[1759757926053,0.67,234.94,234.82,10.87647521]
[1759757926243,5.41008858,234.93,234.83,2.77283118]
[1759757926451,4.25694947,234.91,234.84,36.2779576]
[1759757926746,0.67,234.9,234.85,33.5]
[1759757926948,1.0,234.99,234.86,33.5]
[1759757926949,0.67,234.94,234.86,33.5]
[1759757927270,0.67,234.94,234.88,20.8]
[1759757927432,5.25551659,234.99,234.89,36.27661811]
[1759757927433,0.67,234.98,234.89,36.27661811]
[1759757927633,0.67,234.98,234.9,2.77661811]
[1759757927935,5.43008858,234.97,234.91,33.5]
[1759757928139,5.43008858,234.96,234.92,33.5]
[1759757928340,0.69,234.95,234.89,33.5]
[1759757928544,4.94640589,234.94,234.89,33.5]
[1759757928859,0.69,234.93,234.89,33.5]
[1759757929174,0.69,234.97,234.89,33.5]
[1759757929346,0.69,234.97,234.9,2.78270408]
[1759757929546,0.69,234.97,234.91,2.78270408]
[1759757929739,5.43008858,234.96,234.92,33.5]
[1759757929941,0.69,234.95,234.86,20.8]
[1759757930135,0.69,234.94,234.9,20.8]
[1759757930455,4.25676826,234.92,234.84,3.54612111]
[1759757930647,0.69,234.91,234.85,2.7900206]
[1759757930961,0.69,234.91,234.86,2.7900206]
[1759757931260,0.69,234.9,234.87,2.7900206]
[1759757931430,0.69,234.89,234.81,3.54612111]
[1759757931633,0.69,234.89,234.82,21.354333]
[1759757931634,0.69,234.88,234.82,21.354333]
[1759757931833,0.69,234.88,234.83,21.354333]
[1759757932033,0.69,234.88,234.77,4.74458998]
[1759757932034,0.69,234.87,234.84,2.794333]
[1759757932228,0.69,234.86,234.78,3.49291625]
[1759757932446,20.8,234.89,234.78,3.49291625]
[1759757932447,4.25858104,234.82,234.78,3.49291625]
[1759757932651,8.99866962,234.82,234.77,36.95291625]
[1759757932854,0.69,234.81,234.77,3.49291625]
[1759757933061,5.43008858,234.8,234.77,3.49291625]
[1759757933245,4.74008858,234.78,234.76,3.49291625]
[1759757933433,10.87647521,234.81,234.77,3.49291625]
[1759757933630,4.74008858,234.78,234.76,3.49291625]
[1759757933834,0.69,234.8,234.76,3.49291625]
[1759757934064,0.69,234.79,234.77,3.49291625]
[1759757934274,0.69,234.78,234.76,3.49291625]
[1759757934445,4.74008858,234.78,234.76,3.49291625]
[1759757934767,19.64639181,234.8,234.76,3.49291625]
[1759757934965,0.69,234.79,234.76,3.49291625]
[1759757935169,36.41656379,234.77,234.76,3.49291625]
[1759757935343,10.87647521,234.76,234.7,4.74458998]
[1759757935540,21.49,234.77,234.67,4.74458998]
[1759757935541,4.74008858,234.71,234.67,4.74458998]
[1759757935745,20.8,234.71,234.66,4.74458998]
[1759757935945,4.74008858,234.69,234.66,4.74458998]
[1759757936168,20.8,234.77,234.66,4.74458998]
[1759757936370,0.5,257.45,234.6,33.44]
[1759757936371,4.25894378,234.8,234.69,4.74458998]
[1759757936576,4.25898861,234.8,234.65,10.87647521]
[1759757936868,4.25898861,234.8,234.64,20.8]
[1759757937073,4.74008858,234.71,234.65,20.8]
[1759757937272,31.67647521,234.77,234.65,20.8]
[1759757937849,4.74008858,234.74,234.65,20.8]
[1759757938055,4.74008858,234.73,234.64,33.44]
[1759757938380,0.69,234.76,234.64,33.44]
[1759757938545,0.69,234.76,234.65,4.26166631]
[1759757938546,4.2598509,234.75,234.65,4.26166631]
[1759757938752,4.2598509,234.75,234.65,4.92166631]
[1759757939150,29.79952332,234.78,234.67,20.8]
[1759757939349,10.87647521,234.76,234.64,34.1]
[1759757939573,0.69,234.77,234.67,20.8]
[1759757939873,4.25943474,234.78,234.68,0.66]
[1759757940073,21.52228228,234.84,234.68,0.66]
[1759757940251,4.25839969,234.83,234.69,20.8]
[1759757940577,4.25767445,234.87,234.73,35.71074851]
[1759757940764,5.43008858,234.86,234.74,0.66]
[1759757940970,0.69,234.89,234.78,20.8]
[1759757941167,54.46,234.99,234.79,0.66]
[1759757941168,4.74008858,234.91,234.79,0.66]
[1759757941348,4.74008858,234.9,234.79,0.66]
[1759757941548,4.74008858,234.91,234.79,0.66]
[1759757941763,0.69,234.92,234.79,0.66]
[1759757941964,10.87647521,234.91,234.79,0.66]
[1759757942166,4.74008858,234.86,234.75,0.66]
[1759757942480,5.43008858,234.87,234.79,20.8]
[1759757942784,8.99794432,234.86,234.75,0.66]
[1759757942963,5.43008858,234.87,234.78,33.46]
[1759757943159,14.90249509,234.86,234.74,20.8]
[1759757943490,0.69,234.85,234.74,27.28]
[1759757943654,4.74008858,234.82,234.74,27.28]
[1759757943854,0.69,234.85,234.74,27.94]
[1759757944058,5.43008858,234.85,234.74,27.94]
[1759757944257,0.69,234.85,234.74,27.94]
[1759757944662,0.69,234.89,234.77,25.05946382]
[1759757944960,4.25713069,234.9,234.77,14.90818384]
[1759757945163,14.89995742,234.9,234.77,4.25946382]
[1759757945371,19.640046,234.9,234.75,15.13625439]
[1759757945553,19.640046,234.9,234.75,10.87647521]
[1759757945753,19.640046,234.9,234.61,21.98714142]
[1759757945754,4.74008858,234.88,234.76,33.42]
[1759757945950,0.69,234.87,234.77,33.42]
[1759757946152,0.69,234.87,234.76,33.42]
[1759757946348,10.87647521,234.85,234.76,33.42]
[1759757946572,4.74008858,234.83,234.74,33.42]
[1759757946773,0.69,234.84,234.74,33.42]
[1759757946774,0.69,234.84,234.74,37.68000577]
[1759757946973,21.49,234.89,234.77,20.8]
[1759757947177,4.74008858,234.88,234.77,20.8]
[1759757947376,4.74008858,234.83,234.7,0.66]
[1759757947578,4.74008858,234.8,234.65,4.26166631]
[1759757947808,4.74008858,234.78,234.66,21.98]
[1759757947988,4.74008858,234.76,234.66,0.66]
[1759757948204,20.8,234.79,234.53,0.2]
[1759757948205,4.74008858,234.71,234.57,4.74458998]
[1759757948487,4.74008858,234.64,234.54,0.66]
[1759757948786,4.74008858,234.65,234.54,4.9236514]
[1759757949090,4.74008858,234.63,234.53,0.2]
[1759757949285,4.74008858,234.62,234.54,33.62]
[1759757949491,4.74008858,234.61,234.53,0.2]
[1759757949796,0.69,234.6,234.53,0.2]
[1759757949996,57.02261995,234.66,234.53,0.2]
[1759757949997,10.87647521,234.66,234.54,0.66]
[1759757950300,5.43008858,234.65,234.54,0.66]
[1759757950485,4.74008858,234.68,234.54,0.66]